bitfinex/quotes_SOLUSD_20240912
["timestamp","ask_amount","ask_price","bid_price","bid_amount"]
[1726168855550,1.8416091,135.76,135.74,20.0]
[1726168855749,23.776884,135.75,135.74,20.0]
[1726168856053,23.776884,135.75,135.72,0.2507913]
[1726168856237,23.776884,135.73,135.72,0.2507913]
[1726168865755,23.902374,135.73,135.72,0.2507913]
[1726168866148,24.027864,135.73,135.72,0.2507913]
[1726168873948,25.87071188,135.73,135.72,0.2507913]
[1726168875374,24.027864,135.73,135.72,0.2507913]
[1726168876873,25.8706378,135.73,135.72,0.2507913]
[1726168877056,25.8706378,135.73,135.68,0.2507913]
[1726168877057,24.027864,135.73,135.68,0.2507913]
[1726168877378,23.776884,135.71,135.68,0.2507913]
[1726168877676,0.25098,135.7,135.68,0.2507913]
[1726168877871,2.09396926,135.7,135.68,0.2507913]
[1726168879255,23.776884,135.69,135.68,0.2507913]
[1726168879456,24.027864,135.69,135.68,0.2507913]
[1726168881482,24.027864,135.69,135.64,6.5591913]
[1726168881483,6.88408,135.69,135.64,0.2507913]
[1726168881656,2.09455223,135.68,135.64,0.2507913]
[1726168881853,1.84363829,135.67,135.64,0.2507913]
[1726168882164,0.25098,135.66,135.64,0.2507913]
[1726168882373,1.84372464,135.65,135.64,0.2507913]
[1726168882677,2.09470464,135.65,135.64,0.2507913]
[1726168883354,0.25098,135.65,135.64,0.2507913]
[1726168883554,25.87165418,135.65,135.64,0.2507913]
[1726168891682,25.62067418,135.65,135.64,0.2507913]
[1726168891880,23.2876,135.7,135.64,0.2507913]
[1726168892081,1.84357549,135.69,135.64,0.2507913]
[1726168892497,8.47647549,135.69,135.64,0.2507913]
[1726168892694,72.13,135.68,135.64,0.2507913]
[1726168892890,8.4776572,135.67,135.64,0.2507913]
[1726168893197,23.776884,135.65,135.64,0.2507913]
[1726168893402,25.74631534,135.65,135.64,0.2507913]
[1726168893583,25.87180534,135.65,135.6,0.2507913]
[1726168893902,23.776884,135.63,135.6,0.2507913]
[1726168894084,2.09511895,135.62,135.6,0.2507913]
[1726168894609,0.25098,135.62,135.6,0.2507913]
[1726168894779,2.09523793,135.62,135.6,0.2507913]
[1726168895486,1.84416099,135.61,135.6,0.2507913]
[1726168895679,2.09514099,135.61,135.6,0.2507913]
[1726168895883,25.87202499,135.61,135.6,0.2507913]
[1726168896677,24.027864,135.61,135.6,0.2507913]
[1726168897996,23.776884,135.61,135.6,0.2507913]
[1726168898374,16.2357,135.69,135.6,0.2507913]
[1726168898579,1.84384233,135.68,135.6,0.2507913]
[1726168898781,22.8686,135.69,135.6,0.2507913]
[1726168898984,67.1386,135.69,135.6,0.2507913]
[1726168899206,62.34944665,135.69,135.6,0.2507913]
[1726168899505,68.98214665,135.69,135.6,0.2507913]
[1726168900189,60.5057,135.69,135.6,0.2507913]
[1726168900581,25.87151293,135.68,135.6,0.2507913]
[1726168900907,1.84382625,135.67,135.6,0.2507913]
[1726168901105,24.027864,135.66,135.6,0.2507913]
[1726168901291,1.84380181,135.65,135.6,0.2507913]
[1726168901496,23.776884,135.63,135.6,0.2507913]
[1726168901695,23.776884,135.61,135.6,0.2507913]
[1726168904777,24.027864,135.61,135.6,0.2507913]
[1726168905178,23.902374,135.61,135.6,0.2507913]
[1726168907083,24.027864,135.61,135.6,0.2507913]
[1726168907911,23.776884,135.61,135.6,0.2507913]
[1726168908083,30.55104653,135.69,135.6,0.2507913]
[1726168908084,16.2357,135.69,135.61,20.0]
[1726168909598,23.776884,135.68,135.61,20.0]
[1726168910392,23.776884,135.66,135.61,20.0]
[1726168910593,0.25098,135.65,135.61,20.0]
[1726168912695,0.25098,135.65,135.61,34.60239471]
[1726168913012,44.27,135.71,135.61,34.60239471]
[1726168913213,50.9018,135.71,135.61,34.60239471]
[1726168913711,66.4,135.68,135.61,20.0]
[1726168913885,1.84370196,135.67,135.61,20.0]
[1726168914082,1.84370196,135.67,135.6,21.9602913]
[1726168914304,24.027864,135.66,135.6,21.9602913]
[1726168914514,23.776884,135.64,135.6,21.9602913]
[1726168914823,23.776884,135.62,135.6,21.9602913]
[1726168916203,0.25098,135.61,135.6,21.9602913]
[1726168918221,0.25098,135.61,135.6,6.7434913]
[1726168918433,25.87180462,135.61,135.6,0.2507913]
[1726168920094,1.84393373,135.66,135.6,0.2507913]
[1726168920293,22.9319,135.68,135.6,0.2507913]
[1726168920518,1.8437295,135.67,135.6,0.2507913]
[1726168920721,22.9319,135.68,135.6,0.2507913]
[1726168920903,16.5852,135.68,135.6,20.2507913]
[1726168921511,16.5852,135.68,135.6,0.2507913]
[1726168921714,18.42882776,135.68,135.6,0.2507913]
[1726168921914,23.2185,135.68,135.6,0.2507913]
[1726168922214,24.027864,135.67,135.6,0.2507913]
[1726168922713,24.027864,135.67,135.6,34.85318601]
[1726168923103,24.027864,135.67,135.6,20.2507913]
[1726168923932,24.027864,135.67,135.61,22.4059]
[1726168924106,16.5852,135.72,135.61,37.00829471]
[1726168924438,23.2166,135.72,135.61,37.00829471]
[1726168924800,23.2166,135.72,135.62,20.0]
[1726168925000,6.6319,135.71,135.62,20.0]
[1726168925215,2.09429606,135.7,135.62,20.0]
[1726168925433,23.776884,135.69,135.62,20.0]
[1726168925597,0.25098,135.68,135.62,20.0]
[1726168927204,16.5852,135.72,135.62,34.60239471]
[1726168928325,6.8811913,135.74,135.63,14.60239471]
[1726168928530,23.776884,135.73,135.65,6.3162]
[1726168928731,0.12549,135.72,135.65,6.3162]
[1726168929339,0.2507913,135.74,135.66,24.2757]
[1726168929541,0.2507913,135.74,135.66,38.87809471]
[1726168929725,0.2507913,135.74,135.66,24.2757]
[1726168929931,2.09349249,135.74,135.66,24.2757]
[1726168931131,24.027864,135.73,135.66,24.2757]
[1726168931338,23.776884,135.71,135.66,24.2757]
[1726168931523,23.776884,135.69,135.66,24.2757]
[1726168932924,23.776884,135.69,135.68,20.0]
[1726168933133,0.2507913,135.74,135.69,6.3162]
[1726168933518,0.2507913,135.74,135.71,30.20549471]
[1726168933740,0.2507913,135.74,135.72,34.60239471]
[1726168933957,0.2507913,135.74,135.73,14.60239471]
[1726168934254,0.2507913,135.74,135.73,40.91859471]
[1726168934753,0.2507913,135.74,135.73,26.3162]
[1726168936741,0.2507913,135.74,135.71,15.6031]
[1726168937651,0.2507913,135.74,135.7,6.5885]
[1726168937939,0.25098,135.73,135.7,6.5885]
[1726168938148,24.027864,135.73,135.7,6.5885]
[1726168939948,23.776884,135.73,135.7,6.5885]
[1726168940842,0.2507913,135.74,135.71,20.0]
[1726168949348,23.776884,135.73,135.71,20.0]
[1726168953730,0.2507913,135.74,135.71,42.8594464]
[1726168954653,0.2507913,135.74,135.72,3.595]
[1726168960131,0.2507913,135.74,135.73,14.61669256]
[1726168960527,0.2507913,135.74,135.73,34.61669256]
[1726168965656,0.2507913,135.74,135.73,20.0]
[1726168966035,0.2507913,135.74,135.73,34.61669256]
[1726168972044,0.2507913,135.74,135.73,36.08659146]
[1726168972456,0.2507913,135.74,135.73,42.58079146]
[1726168974546,0.2507913,135.78,135.74,20.0]
[1726168974868,0.2507913,135.78,135.77,34.61669256]
[1726168976366,0.2507913,135.78,135.77,20.0]
[1726168976663,0.2507913,135.78,135.75,14.61669256]
[1726168977053,0.2507913,135.78,135.76,20.0]
[1726168977964,0.2507913,135.78,135.75,20.0]
[1726168979364,0.2507913,135.78,135.75,34.61669256]
[1726168981373,0.2507913,135.78,135.73,6.4942]
[1726168981374,0.2507913,135.78,135.77,34.61669256]
[1726168985467,0.2507913,135.78,135.76,20.0]
[1726168985672,0.2507913,135.78,135.76,14.61669256]
[1726168985865,0.2507913,135.78,135.77,20.0]
[1726168986172,0.2507913,135.78,135.77,34.61669256]
[1726168992270,0.2507913,135.78,135.77,50.01729256]
[1726168992499,0.2507913,135.78,135.77,56.06779256]
[1726168993972,0.2507913,135.82,135.77,56.06779256]
[1726168994169,0.2507913,135.82,135.81,14.61669256]
[1726168994367,0.2507913,135.82,135.81,20.0]
[1726168996297,0.2507913,135.82,135.78,42.81276426]
[1726168998575,0.2507913,135.82,135.81,20.0]
[1726168998782,0.2507913,135.82,135.81,21.47144047]
[1726168999279,0.2507913,135.82,135.81,20.0]
[1726169000097,0.2507913,135.82,135.78,42.81276426]
[1726169002706,0.2507913,135.82,135.81,20.0]
[1726169008624,0.2507913,135.86,135.81,20.0]
[1726169008824,0.2507913,135.86,135.85,20.0]
[1726169009406,0.2507913,135.86,135.82,22.81276426]
[1726169009599,0.2507913,135.86,135.83,20.0]
[1726169018132,0.2507913,135.86,135.84,14.59235215]
[1726169018631,0.2507913,135.86,135.85,20.0]
[1726169019428,0.2507913,135.86,135.85,34.59235215]
[1726169023809,0.2507913,135.86,135.84,20.0]
[1726169024723,0.2507913,135.86,135.84,14.59235215]
[1726169025040,0.2507913,135.86,135.85,20.0]
[1726169028823,0.2507913,135.86,135.85,34.59235215]
[1726169031843,0.2507913,135.86,135.85,20.0]
[1726169033255,0.2507913,135.86,135.85,34.59235215]
[1726169045957,0.2507913,135.9,135.85,34.59235215]
[1726169046132,0.2507913,135.9,135.89,34.59235215]
[1726169047733,0.2507913,135.9,135.87,20.0]
[1726169047943,0.2507913,135.9,135.88,14.59235215]
[1726169048142,0.2507913,135.9,135.89,20.0]
[1726169049561,0.2507913,135.9,135.86,14.59235215]
[1726169049933,23.776884,135.88,135.82,15.4179]
[1726169050142,23.776884,135.88,135.84,14.59235215]
[1726169050440,23.776884,135.89,135.84,14.59235215]
[1726169051448,24.0276753,135.9,135.85,20.0]
[1726169051651,24.0276753,135.9,135.85,14.59235215]
[1726169052047,24.0276753,135.9,135.86,20.0]
[1726169052250,0.2507913,135.9,135.88,14.59235215]
[1726169052642,0.2507913,135.9,135.89,20.0]
[1726169054560,0.2507913,135.9,135.89,34.59235215]
[1726169060714,0.2507913,135.9,135.86,20.0]
[1726169060885,0.2507913,135.9,135.89,20.0]
[1726169061061,0.2507913,135.9,135.89,34.59235215]
[1726169063269,0.2507913,135.9,135.89,20.0]
[1726169065592,0.2507913,135.9,135.89,34.59235215]
[1726169065765,0.2507913,135.9,135.89,14.59235215]
[1726169065970,0.2507913,135.9,135.89,34.59235215]
[1726169066283,0.2507913,135.9,135.89,20.0]
[1726169067200,16.3199913,135.9,135.85,2.111611]
[1726169067377,25.61684341,135.89,135.85,2.111611]
[1726169069280,0.12549,135.88,135.85,2.111611]
[1726169069477,23.776884,135.86,135.85,2.111611]
[1726169074707,24.027864,135.86,135.85,2.111611]
[1726169077905,23.776884,135.86,135.85,2.111611]
[1726169078113,16.3199913,135.9,135.85,2.111611]
[1726169079314,24.027864,135.89,135.85,2.111611]
[1726169083187,23.776884,135.87,135.85,2.111611]
[1726169083392,1.84038286,135.86,135.85,2.111611]
[1726169083599,23.902374,135.86,135.85,2.111611]
[1726169083883,24.027864,135.86,135.85,2.111611]
[1726169084783,23.902374,135.86,135.85,2.111611]
[1726169086913,24.027864,135.86,135.85,2.111611]
[1726169093313,38.4799913,135.9,135.85,2.111611]
[1726169093523,45.1027913,135.9,135.85,2.111611]
[1726169094521,23.776884,135.89,135.85,2.111611]
[1726169094725,0.25098,135.88,135.85,2.111611]
[1726169098518,23.776884,135.87,135.85,2.111611]
[1726169098720,0.12549,135.86,135.85,2.111611]
[1726169104429,0.2507913,135.9,135.85,2.111611]
[1726169104632,0.2507913,135.9,135.86,20.0]
[1726169105253,0.2507913,135.9,135.86,21.46899088]
[1726169105787,0.2507913,135.9,135.86,20.0]
[1726169107521,0.2507913,135.9,135.86,21.47178392]
[1726169107722,0.2507913,135.9,135.86,20.0]
[1726169108134,0.2507913,135.9,135.87,20.0]
[1726169108553,0.2507913,135.9,135.89,40.85975215]
[1726169108751,0.2507913,135.9,135.89,20.85975215]
[1726169108956,0.2507913,135.9,135.89,40.85975215]
[1726169109129,0.2507913,135.9,135.89,26.2674]
[1726169112953,0.2507913,135.9,135.89,40.85975215]
[1726169114354,0.2507913,135.94,135.9,20.0]
[1726169114660,0.2507913,135.94,135.93,1.93e-06]
[1726169114964,0.2507913,135.94,135.93,2.65e-06]
[1726169115151,0.2507913,135.94,135.92,14.59235215]
[1726169116382,0.2507913,135.94,135.89,22.8013]
[1726169116551,24.0276753,135.94,135.89,22.8013]
[1726169116744,24.0276753,135.94,135.89,37.39365215]
[1726169117155,24.0276753,135.94,135.9,34.59235215]
[1726169118078,24.0276753,135.94,135.9,20.0]
[1726169119562,24.0276753,135.94,135.9,34.59235215]
[1726169119880,25.86694458,135.94,135.9,34.59235215]
[1726169120081,24.0276753,135.94,135.9,34.59235215]
[1726169120579,24.0276753,135.94,135.9,20.0]
[1726169123890,24.0276753,135.94,135.9,34.59235215]
[1726169125574,24.0276753,135.94,135.9,20.0]
[1726169130600,24.0276753,135.94,135.91,14.59235215]
[1726169133103,24.0276753,135.94,135.92,14.59235215]
[1726169133408,24.0276753,135.94,135.9,20.0]
[1726169133591,24.0276753,135.94,135.93,1.93e-06]
[1726169133992,0.2507913,135.94,135.93,1.93e-06]
[1726169134398,0.2507913,135.94,135.93,2.65e-06]
[1726169134580,0.2507913,135.94,135.93,1.93e-06]
[1726169136683,24.0276753,135.94,135.92,14.59235215]
[1726169137395,0.2507913,135.94,135.93,1.93e-06]
[1726169137591,0.2507913,135.94,135.92,14.59235215]
[1726169137796,24.0276753,135.94,135.92,14.59235215]
[1726169138294,24.0276753,135.94,135.89,22.8013]
[1726169138295,24.0276753,135.94,135.93,1.93e-06]
[1726169138612,24.0276753,135.94,135.92,14.59235215]
[1726169139110,24.0276753,135.94,135.93,2.65e-06]
[1726169139413,24.0276753,135.94,135.92,14.59235215]
[1726169140691,24.0276753,135.94,135.9,14.59235215]
[1726169141007,23.776884,135.92,135.86,6.6493]
[1726169141190,23.776884,135.92,135.88,14.59235215]
[1726169142387,23.776884,135.92,135.87,34.59235215]
[1726169142785,23.776884,135.92,135.88,14.59235215]
[1726169143182,23.776884,135.92,135.89,14.59235215]
[1726169143713,24.0276753,135.94,135.89,14.59235215]
[1726169145308,24.0276753,135.94,135.87,20.0]
[1726169145486,24.0276753,135.94,135.9,14.59235215]
[1726169146887,24.0276753,135.94,135.91,14.59235215]
[1726169147188,0.2507913,135.94,135.93,1.93e-06]
[1726169148414,0.2507913,135.94,135.92,14.59235215]
[1726169148591,24.0276753,135.94,135.91,14.59235215]
[1726169149112,24.0276753,135.94,135.9,29.92015215]
[1726169149416,24.0276753,135.94,135.9,20.0]
[1726169149590,24.0276753,135.94,135.87,16.3279]
[1726169149786,24.0276753,135.94,135.89,14.59235215]
[1726169151117,24.0276753,135.94,135.9,20.0]
[1726169155739,25.86701556,135.94,135.88,20.0]
[1726169156030,41.87311556,135.94,135.88,20.0]
[1726169156612,41.87311556,135.94,135.87,20.0]
[1726169157343,41.87311556,135.94,135.87,34.59235215]
[1726169157927,41.87311556,135.94,135.85,7.68128086]
[1726169158139,0.25098,135.93,135.85,7.68128086]
[1726169158309,23.776884,135.91,135.85,7.68128086]
[1726169158511,23.776884,135.89,135.83,30.84075215]
[1726169158814,23.776884,135.89,135.84,14.59235215]
[1726169160038,23.776884,135.89,135.85,20.0]
[1726169160413,21.666516,135.89,135.85,20.0]
[1726169161634,21.666516,135.89,135.86,14.59235215]
[1726169161816,16.2568913,135.94,135.87,14.59235215]
[1726169163040,23.902374,135.93,135.87,14.59235215]
[1726169163611,23.776884,135.93,135.87,14.59235215]
[1726169164123,16.2568913,135.94,135.88,20.0]
[1726169165518,23.776884,135.93,135.88,20.0]
[1726169165854,23.776884,135.93,135.88,14.59235215]
[1726169166621,23.776884,135.93,135.88,20.0]
[1726169167533,23.776884,135.93,135.88,14.59235215]
[1726169167911,23.776884,135.93,135.84,20.0]
[1726169168129,23.776884,135.93,135.88,20.0]
[1726169168934,23.776884,135.93,135.85,14.59235215]
[1726169169238,23.776884,135.93,135.87,20.0]
[1726169169536,16.3823813,135.94,135.81,7.69026202]
[1726169169537,40.210184,135.91,135.81,7.69026202]
[1726169169758,40.210184,135.91,135.81,14.59235215]
[1726169169759,23.776884,135.89,135.81,14.59235215]
[1726169170329,23.776884,135.87,135.8,9.22754127]
[1726169170551,23.776884,135.87,135.81,14.59235215]
[1726169172056,23.776884,135.87,135.82,20.0]
[1726169173335,23.776884,135.9,135.84,20.0]
[1726169173856,23.776884,135.9,135.84,34.59235215]
[1726169174531,23.776884,135.9,135.85,14.59235215]
[1726169174951,23.776884,135.9,135.86,20.0]
[1726169175150,16.4333,135.91,135.87,14.59235215]
[1726169175459,16.4333,135.91,135.85,14.59235215]
[1726169175640,16.4333,135.91,135.86,20.0]
[1726169176261,0.2507913,135.94,135.87,14.59235215]
[1726169176574,24.0276753,135.94,135.87,14.59235215]
[1726169177860,24.0276753,135.94,135.88,14.59235215]
[1726169178753,0.2507913,135.94,135.89,20.0]
[1726169178938,0.2507913,135.94,135.89,14.59235215]
[1726169180038,24.0276753,135.94,135.89,14.59235215]
[1726169181545,24.0276753,135.94,135.9,20.0]
[1726169182047,24.0276753,135.94,135.9,14.59235215]
[1726169182450,24.0276753,135.94,135.91,20.0]
[1726169183354,0.2507913,135.94,135.91,14.59235215]
[1726169185068,0.2507913,135.94,135.9,14.59235215]
[1726169185568,0.2507913,135.94,135.91,20.0]
[1726169187539,0.2507913,135.94,135.9,14.59235215]
[1726169187763,0.2507913,135.94,135.91,20.0]
[1726169189241,0.2507913,135.94,135.91,34.59235215]
[1726169189457,0.2507913,135.94,135.92,34.59235215]
[1726169189640,0.2507913,135.94,135.93,1.93e-06]
[1726169190740,0.2507913,135.94,135.92,14.59235215]
[1726169190941,0.2507913,135.94,135.93,20.0]
[1726169191148,0.2507913,135.94,135.93,2.65e-06]
[1726169191548,0.2507913,135.94,135.92,14.59235215]
[1726169193878,24.0276753,135.94,135.89,20.0]
[1726169194168,24.0276753,135.94,135.9,14.59235215]
[1726169195164,24.0276753,135.94,135.89,14.59235215]
[1726169197667,24.0276753,135.94,135.9,14.59235215]
[1726169199858,0.2507913,135.94,135.92,14.59235215]
[1726169200752,0.2507913,135.94,135.91,14.59235215]
[1726169204453,0.2507913,135.94,135.92,14.59235215]
[1726169204654,0.2507913,135.94,135.93,1.93e-06]
[1726169206583,0.2507913,135.94,135.91,20.0]
[1726169206884,24.0276753,135.94,135.89,20.0]
[1726169207083,24.0276753,135.94,135.88,31.23525215]
[1726169208591,24.0276753,135.94,135.89,20.0]
[1726169210583,24.0276753,135.94,135.89,34.59235215]
[1726169210987,23.5276753,135.94,135.89,34.59235215]
[1726169212093,23.5276753,135.94,135.89,20.0]
[1726169215489,23.5276753,135.94,135.88,20.0]
[1726169215672,23.5276753,135.94,135.88,14.59235215]
[1726169215991,23.5276753,135.94,135.89,20.0]
[1726169216899,23.5276753,135.94,135.89,14.59235215]
[1726169217199,23.0276753,135.94,135.89,14.59235215]
[1726169218605,23.0276753,135.94,135.9,14.59235215]
[1726169220602,23.0276753,135.94,135.89,14.59235215]
[1726169221099,23.0276753,135.94,135.88,14.59235215]
[1726169221483,23.0276753,135.94,135.89,20.0]
[1726169223676,23.0276753,135.94,135.89,34.59235215]
[1726169223880,23.0276753,135.94,135.89,14.59235215]
[1726169227311,36.14614217,135.96,135.93,1.93e-06]
[1726169227883,36.14614217,135.96,135.94,1.93e-06]
[1726169228085,36.14614217,135.96,135.94,1.4709575]
[1726169228303,36.14614217,135.96,135.89,21.4319429]
[1726169228607,36.14614217,135.96,135.9,0.25098]
[1726169228907,36.14614217,135.96,135.93,1.93e-06]
[1726169229284,36.14614217,135.96,135.92,14.59235215]
[1726169230122,36.14614217,135.96,135.9,20.25098]
[1726169230307,36.14614217,135.96,135.92,20.0]
[1726169230629,36.14614217,135.96,135.91,14.59235215]
[1726169231609,15.6663,135.97,135.89,14.59235215]
[1726169231610,62.3560265,135.95,135.89,14.59235215]
[1726169231929,60.5170664,135.95,135.88,14.59235215]
[1726169232306,60.5170664,135.95,135.89,14.59235215]
[1726169233224,36.14614217,135.96,135.9,14.59235215]
[1726169237020,23.776884,135.95,135.89,14.59235215]
[1726169237206,62.35616913,135.95,135.89,20.0]
[1726169237711,6.1681,135.94,135.88,7.6813181]
[1726169238030,23.776884,135.92,135.87,20.0]
[1726169238732,23.776884,135.93,135.86,34.59235215]
[1726169238936,23.776884,135.93,135.88,20.0]
[1726169239304,23.776884,135.93,135.88,14.59235215]
[1726169242033,23.776884,135.93,135.86,20.0]
[1726169242240,23.776884,135.93,135.88,20.0]
[1726169243214,23.776884,135.93,135.88,14.59235215]
[1726169244036,23.776884,135.93,135.87,14.59235215]
[1726169244631,23.776884,135.93,135.88,20.0]
[1726169245822,23.776884,135.93,135.88,14.59235215]
[1726169250629,15.8227,135.92,135.88,20.0]
[1726169251937,15.8227,135.92,135.88,14.59235215]
[1726169252947,15.8227,135.92,135.87,34.59235215]
[1726169254845,23.776884,135.91,135.87,20.0]
[1726169255063,1.83964527,135.9,135.86,7.67849093]
[1726169255350,31.82815203,135.89,135.84,0.2507913]
[1726169255526,23.776884,135.87,135.84,0.2507913]
[1726169255723,25.61717389,135.87,135.84,0.2507913]
[1726169256551,0.25098,135.86,135.84,0.2507913]
[1726169257045,39.297284,135.85,135.84,0.2507913]
[1726169257235,39.548264,135.85,135.84,0.2507913]
[1726169258341,39.548264,135.85,135.8,0.2507913]
[1726169258342,23.776884,135.84,135.8,0.2507913]
[1726169258548,23.776884,135.82,135.8,0.2507913]
[1726169258850,25.61783573,135.81,135.8,0.2507913]
[1726169259043,23.776884,135.81,135.8,0.2507913]
[1726169262157,23.776884,135.84,135.8,0.2507913]
[1726169263140,25.6176237,135.84,135.8,0.2507913]
[1726169263551,23.776884,135.84,135.8,0.2507913]
[1726169271448,15.5204,135.85,135.8,14.84314345]
[1726169271654,23.776884,135.87,135.8,14.84314345]
[1726169272575,23.776884,135.85,135.8,14.84314345]
[1726169272779,23.776884,135.85,135.8,0.2507913]
[1726169273588,23.776884,135.86,135.8,0.2507913]
[1726169281073,23.776884,135.87,135.8,0.2507913]
[1726169281274,25.61725907,135.87,135.8,0.2507913]
[1726169281469,23.776884,135.87,135.8,14.84314345]
[1726169281663,23.776884,135.87,135.81,14.59235215]
[1726169285453,23.776884,135.87,135.82,14.59235215]
[1726169286081,23.776884,135.87,135.81,20.88075215]
[1726169288176,23.776884,135.85,135.81,6.2884]
[1726169288475,1.84062579,135.84,135.8,0.2507913]
[1726169288680,23.776884,135.83,135.8,0.2507913]
[1726169290866,1.84085989,135.82,135.8,0.2507913]
[1726169291069,23.776884,135.84,135.8,0.2507913]
[1726169291271,23.776884,135.82,135.8,0.2507913]
[1726169293070,25.61791742,135.81,135.8,0.2507913]
[1726169294154,23.776884,135.81,135.8,0.2507913]
[1726169294354,39.531964,135.81,135.8,0.2507913]
[1726169294551,41.37351463,135.81,135.8,0.2507913]
[1726169295482,39.531964,135.81,135.8,0.2507913]
[1726169295676,46.158864,135.81,135.8,0.2507913]
[1726169295873,39.531964,135.81,135.8,0.2507913]
[1726169296461,59.531964,135.81,135.8,0.2507913]
[1726169298583,23.776884,135.8,135.76,0.2507913]
[1726169298879,23.776884,135.78,135.76,0.2507913]
[1726169299087,1.84178423,135.77,135.76,0.2507913]
[1726169299464,25.61866823,135.77,135.76,0.2507913]
[1726169299771,25.86964823,135.77,135.76,0.2507913]
[1726169300284,24.027864,135.77,135.76,0.2507913]
[1726169303481,24.027864,135.77,135.72,0.2507913]
[1726169303482,23.776884,135.75,135.72,0.2507913]
[1726169303789,23.776884,135.73,135.72,0.2507913]
[1726169303986,25.74476564,135.73,135.72,0.2507913]
[1726169305978,23.902374,135.73,135.72,0.2507913]
[1726169308304,25.87026196,135.73,135.72,0.2507913]
[1726169309179,24.027864,135.73,135.72,0.2507913]
[1726169309701,24.027864,135.73,135.68,0.2507913]
[1726169309702,0.25098,135.73,135.68,0.2507913]
[1726169309903,24.027864,135.72,135.68,0.2507913]
[1726169310106,23.776884,135.7,135.68,0.2507913]
[1726169310403,1.84275009,135.69,135.68,0.2507913]
[1726169310596,23.776884,135.69,135.68,0.2507913]
[1726169311003,0.25098,135.72,135.68,0.2507913]
[1726169311202,16.1841,135.76,135.68,0.2507913]
[1726169311376,16.1841,135.76,135.68,16.5810913]
[1726169311883,1.84222696,135.75,135.68,16.5810913]
[1726169313100,23.776884,135.74,135.68,16.5810913]
[1726169313299,0.12549,135.73,135.68,16.5810913]
[1726169317107,23.776884,135.75,135.68,16.5810913]
[1726169317304,0.12549,135.74,135.68,16.5810913]
[1726169318986,23.776884,135.75,135.68,31.17344345]
[1726169321413,15.8753,135.79,135.7,14.59235215]
[1726169321622,23.4381913,135.82,135.72,14.59235215]
[1726169322904,20.0,135.8,135.72,31.19895215]
[1726169323108,24.027864,135.79,135.72,31.19895215]
[1726169324616,23.902374,135.79,135.72,31.19895215]
[1726169324822,20.0,135.81,135.72,31.19895215]
[1726169326100,23.776884,135.8,135.72,31.19895215]
[1726169326417,0.25098,135.79,135.73,21.20495215]
[1726169328715,23.776884,135.8,135.74,14.59235215]
[1726169330736,23.776884,135.8,135.73,21.20495215]
[1726169331732,1.96701227,135.79,135.73,6.6126]
[1726169331902,23.776884,135.78,135.73,6.6126]
[1726169332234,23.776884,135.76,135.73,6.6126]
[1726169333102,23.776884,135.76,135.73,21.20495215]
[1726169333430,23.776884,135.76,135.73,6.6126]
[1726169336428,1.84184792,135.75,135.73,6.6126]
[1726169336612,23.776884,135.74,135.72,16.6066]
[1726169337209,23.776884,135.74,135.72,31.19895215]
[1726169337743,23.902374,135.79,135.72,31.19895215]
[1726169338035,0.12549,135.78,135.72,31.19895215]
[1726169338220,1.96734692,135.78,135.72,31.19895215]
[1726169338415,23.776884,135.77,135.72,16.6066]
[1726169338606,23.776884,135.75,135.72,16.6066]
[1726169338815,1.84194335,135.74,135.72,16.6066]
[1726169339021,23.776884,135.75,135.72,16.6066]
[1726169339213,1.84196591,135.74,135.72,16.6066]
[1726169340533,23.776884,135.73,135.72,16.6066]
[1726169341434,0.12549,135.78,135.72,16.6066]
[1726169341929,0.12549,135.78,135.72,31.19895215]
[1726169342142,0.12549,135.78,135.73,14.59235215]
[1726169342356,0.12549,135.79,135.74,14.59235215]
[1726169342918,0.2507913,135.82,135.76,14.59235215]
[1726169343338,0.2507913,135.82,135.75,20.67855215]
[1726169343524,2.09221714,135.82,135.75,20.67855215]
[1726169343718,0.2507913,135.82,135.75,20.67855215]
[1726169344321,0.12549,135.81,135.75,20.67855215]
[1726169345234,0.25098,135.81,135.75,20.67855215]
[1726169346639,24.0276753,135.82,135.77,14.59235215]
[1726169348452,0.2507913,135.82,135.78,14.59235215]
[1726169350747,0.2507913,135.82,135.77,30.46755215]
[1726169351133,0.2507913,135.82,135.79,14.59235215]
[1726169351745,0.2507913,135.82,135.8,14.59235215]
[1726169352526,0.2507913,135.82,135.79,14.59235215]
[1726169353756,0.2507913,135.82,135.8,21.18185215]
[1726169354652,0.2507913,135.82,135.81,14.59235215]